fUST/lending_fUST_20250822
["ID","MTS","AMOUNT","RATE_DAILY","PERIOD"]
[380732146,1755852649244,-485.86935132,0.00024931,10]
[380732148,1755852649254,-483.50217806,0.00024931,10]
[380732150,1755852649263,-480.0,0.00024931,10]
[380732152,1755852649273,-494.99,0.00024931,10]
[380732154,1755852649282,-480.0,0.00024931,10]
[380732155,1755852649292,-480.0,0.00024931,10]
[380732157,1755852649301,-480.0,0.00024931,10]
[380732159,1755852649310,-480.0,0.00024931,10]
[380732161,1755852649319,-480.0,0.00024931,10]
[380732163,1755852649329,-480.0,0.00024931,10]
[380732164,1755852649339,-480.0,0.00024931,10]
[380732166,1755852649349,-480.0,0.00024931,10]
[380732168,1755852649358,-480.0,0.00024931,10]
[380732170,1755852649369,-480.0,0.00024931,10]
[380732172,1755852649381,-480.0,0.00024931,10]
[380732174,1755852649390,-1276.46,0.00024931,10]
[380732176,1755852649399,-282.06481914,0.00024931,10]
[380732178,1755852649408,-480.0,0.00024931,10]
[380732180,1755852649418,-480.0,0.00024931,10]
[380732182,1755852649427,-480.0,0.00024931,10]
[380732184,1755852649437,-490.156608,0.00024931,10]
[380732186,1755852649448,-480.0,0.00024931,10]
[380732188,1755852649457,-480.0,0.00024931,10]
[380732190,1755852649468,-480.0,0.00024931,10]
[380732192,1755852649477,-480.0,0.00024931,10]
[380732194,1755852649486,-480.0,0.00024931,10]
[380732196,1755852649496,-480.0,0.00024931,10]
[380732198,1755852649505,-480.0,0.00024931,10]
[380732200,1755852649515,-480.0,0.00024931,10]
[380732201,1755852649524,-480.0,0.00024931,10]
[380732203,1755852649534,-480.0,0.00024931,10]
[380732205,1755852649543,-480.0,0.00024931,10]
[380732207,1755852649552,-476.0,0.00024931,10]
[380732209,1755852649562,-480.0,0.00024931,10]
[380732211,1755852649571,-480.0,0.00024931,10]
[380732213,1755852649581,-480.0,0.00024931,10]
[380732215,1755852649590,-535.331257,0.00024931,10]
[380732217,1755852649599,-694.9,0.00024931,10]
[380732219,1755852649609,-658.49,0.00024931,10]
[380732221,1755852649618,-480.0,0.00024931,10]
[380732223,1755852649627,-480.0,0.00024931,10]
[380732225,1755852649636,-480.0,0.00024931,10]
[380732227,1755852649645,-480.0,0.00024931,10]
[380732228,1755852649654,-490.69967964,0.00024931,10]
[380732230,1755852649664,-480.0,0.00024931,10]
[380732231,1755852649673,-480.0,0.00024931,10]
[380732232,1755852649682,-213.10679177,0.00024931,10]
[380732233,1755852649689,-480.0,0.00024931,10]
[380732234,1755852649698,-480.0,0.00024931,10]
[380732235,1755852649706,-480.0,0.00024931,10]
[380732236,1755852649716,-480.0,0.00024931,10]
[380732237,1755852649724,-480.0,0.00024931,10]
[380732238,1755852649733,-559.8756635,0.00024931,10]
[380732239,1755852649741,-481.89595138,0.00024931,10]
[380732240,1755852649750,-480.0,0.00024931,10]
[380732241,1755852649760,-480.0,0.00024931,10]
[380732242,1755852649769,-480.0,0.00024931,10]
[380732243,1755852649855,-480.0,0.00024931,10]
[380732244,1755852649864,-495.22051138,0.00024931,10]
[380732245,1755852649874,-483.01236928,0.00024931,10]
[380732246,1755852649882,-480.0,0.00024931,10]
[380732247,1755852649891,-480.0,0.00024931,10]
[380732248,1755852649900,-486.24773051,0.00024931,10]
[380732250,1755852649908,-604.86415129,0.00024931,10]
[380732252,1755852649917,-480.0,0.00024931,10]
[380732254,1755852649927,-480.0,0.00024931,10]
[380732256,1755852649936,-480.0,0.00024931,10]
[380732258,1755852649945,-480.0,0.00024931,10]
[380732260,1755852649955,-480.0,0.00024931,10]
[380732262,1755852649967,-480.0,0.00024931,10]
[380732264,1755852649976,-448.67458105,0.00024931,10]
[380732266,1755852649985,-470.8365844,0.00024931,10]
[380732268,1755852649995,-480.0,0.00024931,10]
[380732270,1755852650004,-480.0,0.00024931,10]
[380732272,1755852650014,-419.39659461,0.00024931,10]
[380732274,1755852650023,-480.0,0.00024931,10]
[380732276,1755852650032,-1037.19,0.00024931,10]
[380732278,1755852650041,-480.0,0.00024931,10]
[380732280,1755852650050,-480.0,0.00024931,10]
[380732282,1755852650059,-480.0,0.00024931,10]
[380732284,1755852650068,-377.21589335,0.00024931,10]
[380732286,1755852650077,-486.88864308,0.00024931,10]
[380732288,1755852650086,-480.0,0.00024931,10]
[380732290,1755852650094,-480.0,0.00024931,10]
[380732292,1755852650102,-486.45951619,0.00024931,10]
[380732293,1755852650108,-480.0,0.00024931,10]
[380732295,1755852650115,-493.01473465,0.00024931,10]
[380732297,1755852650124,-480.0,0.00024931,10]
[380732299,1755852650133,-480.0,0.00024931,10]
[380732301,1755852650141,-560.00155483,0.00024931,10]
[380732302,1755852650149,-485.29640866,0.00024931,10]
[380732304,1755852650157,-480.0,0.00024931,10]
[380732306,1755852650165,-487.13603969,0.00024931,10]
[380732308,1755852650174,-480.0,0.00024931,10]
[380732310,1755852650183,-378.35027727,0.00024931,10]
[380732312,1755852650191,-480.0,0.00024931,10]
[380732314,1755852650199,-480.0,0.00024931,10]
[380732316,1755852650206,-256.13429677,0.00024931,10]
[380732318,1755852650216,-480.0,0.00024931,10]
[380732320,1755852650225,-480.0,0.00024931,10]
[380732322,1755852650234,-480.0,0.00024931,10]
[380732323,1755852650244,-587.17,0.00024931,10]
[380732325,1755852650253,-480.0,0.00024931,10]
[380732327,1755852650262,-480.0,0.00024931,10]
[380732329,1755852650272,-480.0,0.00024931,10]
[380732331,1755852650281,-480.0,0.00024931,10]
[380732333,1755852650290,-480.0,0.00024931,10]
[380732335,1755852650300,-486.88213297,0.00024931,10]
[380732337,1755852650309,-480.0,0.00024931,10]
[380732339,1755852650319,-553.27240287,0.00024931,10]
[380732341,1755852650328,-471.72783083,0.00024931,10]
[380732343,1755852650337,-480.0,0.00024931,10]
[380732345,1755852650347,-480.0,0.00024931,10]
[380732347,1755852650356,-552.29,0.00024931,10]
[380732349,1755852650365,-272.33088699,0.00024931,10]
[380732350,1755852650379,-480.0,0.00024931,10]
[380732352,1755852650388,-480.0,0.00024931,10]
[380732354,1755852650397,-480.0,0.00024931,10]
[380732356,1755852650407,-480.0,0.00024931,10]
[380732358,1755852650416,-480.0,0.00024931,10]
[380732360,1755852650426,-255.12813922,0.00024931,10]
[380732362,1755852650435,-480.0,0.00024931,10]
[380732364,1755852650445,-480.0,0.00024931,10]
[380732366,1755852650454,-480.0,0.00024931,10]
[380732367,1755852650464,-492.40753244,0.00024931,10]
[380732369,1755852650473,-480.0,0.00024931,10]
[380732371,1755852650482,-480.0,0.00024931,10]
[380732373,1755852650491,-480.0,0.00024931,10]
[380732375,1755852650501,-541.88797185,0.00024931,10]
[380732377,1755852650510,-1184.9,0.00024931,10]
[380732379,1755852650520,-480.0,0.00024931,10]
[380732381,1755852650529,-480.0,0.00024931,10]
[380732383,1755852650538,-490.84757827,0.00024931,10]
[380732385,1755852650547,-480.0,0.00024931,10]
[380732387,1755852650557,-480.0,0.00024931,10]
[380732389,1755852650566,-480.0,0.00024931,2]
[380732390,1755852650575,-1104.52,0.00024931,10]
[380732392,1755852650584,-486.77532707,0.00024931,10]
[380732394,1755852650594,-480.0,0.00024931,10]
[380732396,1755852650603,-484.28625809,0.00024931,10]
[380732398,1755852650612,-480.0,0.00024931,10]
[380732400,1755852650623,-480.0,0.00024931,3]
[380732402,1755852650632,-489.05021733,0.00024931,10]
[380732404,1755852650641,-487.03183348,0.00024931,10]
[380732405,1755852650651,-491.46263372,0.00024931,10]
[380732407,1755852650662,-480.0,0.00024931,10]
[380732409,1755852650671,-480.0,0.00024931,10]
[380732411,1755852650681,-158.74,0.00024944,7]
[380732413,1755852650690,-151.0,0.00024952,2]
[380732415,1755852650700,-8458.97906503,0.00024952,2]
[380732417,1755852650709,-159.01,0.00024964,7]
[380732419,1755852650719,-1871.0,0.00024977,2]
[380732421,1755852650728,-184.88462635,0.00025016,2]
[380732423,1755852650737,-184.88462635,0.00025016,2]
[380732425,1755852650746,-334.54178551,0.00025021,2]
[380732427,1755852650756,-158.74,0.00025044,7]
[380732429,1755852650766,-159.01,0.00025064,7]
[380732430,1755852650775,-1000.0,0.00025121,2]
[380732432,1755852650784,-158.74,0.00025144,7]
[380732434,1755852650794,-151.0,0.000252,20]
[380732436,1755852650803,-480.0,0.00025205,10]
[380732438,1755852650813,-480.0,0.00025205,10]
[380732440,1755852650824,-480.0,0.00025205,10]
[380732442,1755852650833,-480.0,0.00025205,10]
[380732444,1755852650843,-517.16794357,0.00025205,10]
[380732446,1755852650852,-480.0,0.00025205,10]
[380732448,1755852650861,-480.0,0.00025205,10]
[380732449,1755852650870,-480.0,0.00025205,10]
[380732451,1755852650879,-480.0,0.00025205,10]
[380732453,1755852650888,-480.0,0.00025205,10]
[380732455,1755852650898,-480.0,0.00025205,10]
[380732457,1755852650907,-480.0,0.00025205,10]
[380732459,1755852650917,-565.66477349,0.00025205,10]
[380732461,1755852650926,-480.0,0.00025205,10]
[380732463,1755852650935,-480.0,0.00025205,10]
[380732465,1755852650944,-480.0,0.00025205,10]
[380732467,1755852650953,-480.0,0.00025205,10]
[380732469,1755852650964,-480.0,0.00025205,10]
[380732471,1755852650973,-480.0,0.00025205,10]
[380732473,1755852650983,-480.0,0.00025205,10]
[380732474,1755852650992,-480.0,0.00025205,10]
[380732476,1755852651002,-309.45111049,0.00025205,10]
[380732478,1755852651011,-480.0,0.00025205,10]
[380732480,1755852651020,-480.0,0.00025205,10]
[380732482,1755852651030,-1276.46,0.00025205,10]
[380732484,1755852651040,-480.0,0.00025205,10]
[380732486,1755852651049,-480.0,0.00025205,10]
[380732488,1755852651058,-406.03316049,0.00025205,10]
[380732490,1755852651068,-480.0,0.00025205,10]
[380732492,1755852651077,-480.0,0.00025205,10]
[380732494,1755852651086,-480.0,0.00025205,10]
[380732496,1755852651096,-500.77744781,0.00025205,10]
[380732498,1755852651105,-480.0,0.00025205,10]
[380732500,1755852651114,-480.0,0.00025205,10]
[380732501,1755852651124,-694.9,0.00025205,10]
[380732503,1755852651133,-658.49,0.00025205,10]
[380732505,1755852651143,-480.0,0.00025205,10]
[380732507,1755852651152,-484.14841196,0.00025205,10]
[380732509,1755852651163,-480.0,0.00025205,10]
[380732511,1755852651173,-480.0,0.00025205,10]
[380732513,1755852651182,-480.0,0.00025205,10]
[380732515,1755852651191,-480.0,0.00025205,10]
[380732517,1755852651200,-480.0,0.00025205,10]
[380732519,1755852651209,-480.0,0.00025205,10]
[380732521,1755852651220,-480.0,0.00025205,10]
[380732523,1755852651230,-480.0,0.00025205,10]
[380732525,1755852651239,-480.0,0.00025205,10]
[380732527,1755852651248,-480.0,0.00025205,10]
[380732529,1755852651257,-480.0,0.00025205,10]
[380732531,1755852651267,-152.08378392,0.00025205,10]
[380732533,1755852651277,-173.69599423,0.00025205,10]
[380732535,1755852651289,-464.86309156,0.00025205,10]
[380732537,1755852651299,-480.0,0.00025205,10]
[380732539,1755852651308,-480.0,0.00025205,10]
[380732540,1755852651317,-480.0,0.00025205,10]
[380732542,1755852651326,-480.0,0.00025205,10]
[380732544,1755852651335,-1037.19,0.00025205,10]
[380732546,1755852651346,-480.0,0.00025205,10]
[380732548,1755852651355,-480.0,0.00025205,10]
[380732550,1755852651364,-480.0,0.00025205,10]
[380732552,1755852651376,-480.0,0.00025205,10]
[380732554,1755852651386,-480.0,0.00025205,10]
[380732556,1755852651395,-480.0,0.00025205,10]
[380732558,1755852651405,-492.68847828,0.00025205,10]
[380732560,1755852651415,-480.0,0.00025205,10]
[380732562,1755852651424,-521.37495853,0.00025205,10]
[380732564,1755852651433,-480.0,0.00025205,10]
[380732566,1755852651443,-480.0,0.00025205,10]
[380732568,1755852651453,-480.0,0.00025205,10]
[380732569,1755852651462,-480.0,0.00025205,10]
[380732571,1755852651471,-480.0,0.00025205,10]
[380732573,1755852651481,-480.0,0.00025205,10]
[380732575,1755852651491,-480.0,0.00025205,10]
[380732576,1755852651500,-480.0,0.00025205,10]
[380732578,1755852651509,-480.0,0.00025205,10]
[380732580,1755852651518,-483.62325136,0.00025205,10]
[380732582,1755852651528,-480.0,0.00025205,10]
[380732584,1755852651538,-552.29,0.00025205,10]
[380732593,1755852651619,-480.0,0.00025205,10]
[380732595,1755852651629,-489.20115176,0.00025205,10]
[380732596,1755852651639,-480.0,0.00025205,10]
[380732598,1755852651648,-480.0,0.00025205,10]
[380732600,1755852651657,-480.0,0.00025205,10]
[380732602,1755852651667,-592.98852806,0.00025205,10]
[380732604,1755852651677,-480.0,0.00025205,10]
[380732606,1755852651686,-480.0,0.00025205,10]
[380732608,1755852651696,-480.0,0.00025205,10]
[380732610,1755852651705,-480.0,0.00025205,10]
[380732612,1755852651715,-1184.9,0.00025205,10]
[380732614,1755852651724,-480.0,0.00025205,10]
[380732616,1755852651734,-480.0,0.00025205,10]
[380732618,1755852651743,-480.0,0.00025205,10]
[380732619,1755852651753,-480.0,0.00025205,10]
[380732621,1755852651764,-480.0,0.00025205,2]
[380732623,1755852651773,-1104.52,0.00025205,10]
[380732625,1755852651783,-480.0,0.00025205,10]
[380732627,1755852651793,-480.0,0.00025205,3]
[380732629,1755852651803,-480.0,0.00025205,10]
[380732631,1755852651812,-480.0,0.00025205,10]
[380732633,1755852651822,-250.0,0.00025205,2]
[380732635,1755852651832,-250.0,0.00025221,2]
[380732637,1755852651841,-300.75940492,0.00025221,2]
[380732639,1755852651851,-1000.0,0.00025221,2]
[380732641,1755852651861,-1000.0,0.00025221,2]
[380732643,1755852651871,-502.97462895,0.00025221,2]
[380732645,1755852651880,-1000.0,0.00025238,2]
[380732647,1755852651889,-1000.0,0.00025238,2]
[380732648,1755852651899,-1000.0,0.00025238,2]
[380732650,1755852651908,-1000.0,0.00025238,2]
[380732652,1755852651917,-240.33,0.00025238,2]
[380732654,1755852651927,-158.74,0.00025244,7]
[380732656,1755852651936,-20962.99,0.000253,2]
[380732658,1755852651946,-151.0,0.000253,14]
[380732660,1755852651955,-660.0,0.00025306,2]
[380732662,1755852651964,-158.74,0.00025344,7]
[380732664,1755852651973,-6681.19649657,0.00025379,2]
[380732666,1755852651982,-151.0,0.000254,20]
[380732668,1755852651991,-158.74,0.00025444,7]
[380732669,1755852652000,-160.184098,0.00025445,2]
[380732671,1755852652010,-1494.5245185,0.00025449,3]
[380732673,1755852652019,-480.0,0.00025479,10]
[380732675,1755852652029,-480.0,0.00025479,10]
[380732677,1755852652038,-480.0,0.00025479,10]
[380732679,1755852652048,-480.0,0.00025479,10]
[380732681,1755852652057,-480.0,0.00025479,10]
[380732683,1755852652067,-480.0,0.00025479,10]
[380732685,1755852652076,-480.0,0.00025479,10]
[380732687,1755852652086,-480.0,0.00025479,10]
[380732689,1755852652095,-312.72477465,0.00025479,10]
[380732691,1755852652105,-480.0,0.00025479,10]
[380732693,1755852652115,-480.0,0.00025479,10]
[380732695,1755852652126,-480.0,0.00025479,10]
[380732696,1755852652136,-480.0,0.00025479,10]
[380732697,1755852652145,-480.0,0.00025479,10]
[380732698,1755852652154,-535.69188012,0.00025479,10]
[380732699,1755852652164,-480.0,0.00025479,10]
[380732700,1755852652173,-312.44143875,0.00025479,10]
[380732701,1755852652182,-480.0,0.00025479,10]
[380732702,1755852652191,-502.06148124,0.00025479,10]
[380732703,1755852652202,-414.5855922,0.00025479,10]
[380732704,1755852652211,-1276.46,0.00025479,10]
[380732705,1755852652221,-480.0,0.00025479,10]
[380732706,1755852652231,-480.0,0.00025479,10]
[380732707,1755852652242,-480.0,0.00025479,10]
[380732708,1755852652258,-480.0,0.00025479,10]
[380732709,1755852652268,-480.0,0.00025479,10]
[380732710,1755852652277,-658.49,0.00025479,10]
[380732711,1755852652287,-694.9,0.00025479,10]
[380732712,1755852652296,-480.0,0.00025479,10]
[380732713,1755852652305,-480.0,0.00025479,10]
[380732714,1755852652315,-480.0,0.00025479,10]
[380732715,1755852652324,-544.02651257,0.00025479,10]
[380732716,1755852652333,-480.0,0.00025479,10]
[380732717,1755852652343,-480.0,0.00025479,10]
[380732718,1755852652351,-495.2576,0.00025479,10]
[380732719,1755852652361,-480.0,0.00025479,10]
[380732720,1755852652373,-480.0,0.00025479,10]
[380732721,1755852652382,-480.0,0.00025479,10]
[380732722,1755852652391,-480.0,0.00025479,10]
[380732723,1755852652401,-480.0,0.00025479,10]
[380732724,1755852652411,-429.68052873,0.00025479,10]
[380732725,1755852652420,-480.0,0.00025479,10]
[380732726,1755852652429,-480.0,0.00025479,10]
[380732727,1755852652439,-1037.19,0.00025479,10]
[380732728,1755852652450,-480.0,0.00025479,10]
[380732729,1755852652459,-480.0,0.00025479,10]
[380732730,1755852652474,-480.0,0.00025479,10]
[380732731,1755852652492,-480.0,0.00025479,10]
[380732732,1755852652501,-190.59234391,0.00025479,10]
[380732733,1755852652511,-480.0,0.00025479,10]
[380732734,1755852652519,-480.0,0.00025479,10]
[380732735,1755852652528,-480.0,0.00025479,10]
[380732736,1755852652537,-372.38717356,0.00025479,10]
[380732737,1755852652547,-480.0,0.00025479,10]
[380732738,1755852652556,-480.0,0.00025479,10]
[380732739,1755852652566,-480.0,0.00025479,10]
[380732741,1755852652575,-480.0,0.00025479,10]
[380732742,1755852652586,-480.0,0.00025479,10]
[380732744,1755852652595,-480.0,0.00025479,10]
[380732746,1755852652604,-480.0,0.00025479,10]
[380732748,1755852652614,-552.29,0.00025479,10]
[380732750,1755852652623,-480.0,0.00025479,10]
[380732752,1755852652632,-462.21432956,0.00025479,10]
[380732754,1755852652641,-480.0,0.00025479,10]
[380732756,1755852652651,-480.0,0.00025479,10]
[380732758,1755852652660,-480.0,0.00025479,10]
[380732760,1755852652670,-480.0,0.00025479,10]
[380732762,1755852652679,-480.0,0.00025479,10]
[380732764,1755852652688,-480.0,0.00025479,10]
[380732765,1755852652698,-1184.9,0.00025479,10]
[380732767,1755852652707,-480.0,0.00025479,10]
[380732769,1755852652717,-480.0,0.00025479,10]
[380732771,1755852652726,-480.0,0.00025479,2]
[380732773,1755852652735,-1104.52,0.00025479,10]
[380732775,1755852652745,-480.0,0.00025479,10]
[380732777,1755852652755,-480.0,0.00025479,3]
[380732779,1755852652764,-480.0,0.00025479,10]
[380732781,1755852652774,-480.0,0.00025479,10]
[380732783,1755852652783,-1000.0,0.000255,2]
[380732785,1755852652793,-158.74,0.00025544,7]
[380732787,1755852652802,-1415.69490132,0.00025547,2]
[380732789,1755852652812,-500.0,0.00025576,2]
[380732791,1755852652821,-1103.86240837,0.000256,2]
[380732793,1755852652831,-500.0,0.00025602,2]
[380732795,1755852652841,-844.33851978,0.00025633,2]
[380732797,1755852652850,-376.07413479,0.00025634,2]
[380732799,1755852652859,-158.74,0.00025644,7]
[380732801,1755852652869,-500.0,0.0002566,2]
[380732803,1755852652878,-1500.0,0.00025668,2]
[380732805,1755852652888,-500.0,0.00025682,2]
[380732807,1755852652897,-277.3,0.000257,7]
[380732809,1755852652907,-500.0,0.00025705,2]
[380732811,1755852652917,-158.76319839,0.00025744,7]
[380732813,1755852652927,-500.0,0.00025751,2]
[380732815,1755852652936,-284.81,0.00025753,10]
[380732817,1755852652946,-480.0,0.00025753,10]
[380732819,1755852652956,-480.0,0.00025753,10]
[380732821,1755852652965,-480.0,0.00025753,10]
[380732823,1755852652975,-480.0,0.00025753,10]
[380732825,1755852652985,-480.0,0.00025753,10]
[380732827,1755852652995,-480.0,0.00025753,10]
[380732829,1755852653007,-480.0,0.00025753,10]
[380732831,1755852653017,-480.0,0.00025753,10]
[380732833,1755852653027,-480.0,0.00025753,10]
[380732835,1755852653037,-480.0,0.00025753,10]
[380732837,1755852653046,-480.0,0.00025753,10]
[380732839,1755852653056,-248.48972358,0.00025753,10]
[380732841,1755852653066,-480.0,0.00025753,10]
[380732843,1755852653077,-1276.46,0.00025753,10]
[380732845,1755852653086,-480.0,0.00025753,10]
[380732847,1755852653096,-480.0,0.00025753,10]
[380732849,1755852653106,-480.0,0.00025753,10]
[380732851,1755852653115,-480.0,0.00025753,10]
[380732853,1755852653125,-694.9,0.00025753,10]
[380732855,1755852653135,-480.0,0.00025753,10]
[380732857,1755852653144,-480.0,0.00025753,10]
[380732859,1755852653154,-480.0,0.00025753,10]
[380732861,1755852653163,-480.0,0.00025753,10]
[380732863,1755852653172,-480.0,0.00025753,10]
[380732865,1755852653182,-480.0,0.00025753,10]
[380732867,1755852653191,-480.0,0.00025753,10]
[380732869,1755852653200,-592.38449627,0.00025753,10]
[380732871,1755852653210,-480.0,0.00025753,10]
[380732873,1755852653220,-506.78575179,0.00025753,10]
[380732875,1755852653229,-495.47606925,0.00025753,10]
[380732884,1755852653313,-480.0,0.00025753,10]
[380732886,1755852653323,-1037.19,0.00025753,10]
[380732888,1755852653332,-480.0,0.00025753,10]
[380732890,1755852653342,-480.0,0.00025753,10]
[380732892,1755852653352,-480.0,0.00025753,10]
[380732894,1755852653362,-480.0,0.00025753,10]
[380732896,1755852653375,-480.0,0.00025753,10]
[380732898,1755852653385,-480.0,0.00025753,10]
[380732900,1755852653395,-480.0,0.00025753,10]
[380732902,1755852653404,-480.0,0.00025753,10]
[380732904,1755852653415,-480.0,0.00025753,10]
[380732906,1755852653425,-480.0,0.00025753,10]
[380732908,1755852653435,-480.0,0.00025753,10]
[380732911,1755852653447,-372.99249545,0.00025753,10]
[380732912,1755852653458,-480.0,0.00025753,10]
[380732915,1755852653468,-480.0,0.00025753,10]
[380732916,1755852653477,-552.29,0.00025753,10]
[380732918,1755852653487,-480.0,0.00025753,10]
[380732920,1755852653496,-480.0,0.00025753,10]
[380732922,1755852653506,-480.0,0.00025753,10]
[380732924,1755852653515,-480.0,0.00025753,10]
[380732926,1755852653525,-480.0,0.00025753,10]
[380732928,1755852653535,-480.0,0.00025753,10]
[380732930,1755852653544,-480.0,0.00025753,10]
[380732932,1755852653554,-1184.9,0.00025753,10]
[380732934,1755852653563,-480.0,0.00025753,10]
[380732936,1755852653573,-480.0,0.00025753,10]
[380732937,1755852653582,-430.0,0.00025753,2]
[380732939,1755852653592,-1104.52,0.00025753,10]
[380732941,1755852653601,-480.0,0.00025753,10]
[380732943,1755852653612,-480.0,0.00025753,3]
[380732945,1755852653622,-480.0,0.00025753,10]
[380732947,1755852653632,-522.60627458,0.00025753,10]
[380732949,1755852653642,-250.44851005,0.00025768,2]
[380732951,1755852653652,-1262.29165198,0.00025768,2]
[380732953,1755852653662,-1500.0,0.00025768,2]
[380732955,1755852653671,-500.0,0.00025807,2]
[380732957,1755852653682,-472.39449805,0.00025822,2]
[380732959,1755852653693,-760.0,0.00025854,2]
[380732961,1755852653703,-500.0,0.00025868,2]
[380732963,1755852653713,-7098.60727503,0.00025908,2]
[380732965,1755852653723,-1658.183106,0.00026,30]
[380732967,1755852653733,-394734.2124619,0.00026,14]
[380732998,1755852654051,-226.18423224,0.00020873,2]
[380733000,1755852654062,-485.34583737,0.00024657,10]
[380733002,1755852654072,-480.0,0.00024657,10]
[380733004,1755852654083,-70.46993039,0.00024657,10]
[380733007,1755852654101,-209.17042967,0.00024657,10]
[380733009,1755852654110,-480.0,0.00024657,7]
[380733011,1755852654120,-2833.69120908,0.00024699,2]
[380733013,1755852654130,-2833.69120908,0.000248,2]
[380733015,1755852654139,-5071.01558946,0.00026,14]
[380733033,1755852654312,-461.35959753,0.00024657,10]
[380733034,1755852654322,-480.0,0.00024657,10]
[380733036,1755852654332,-2873.36993225,0.00026,14]
[380733060,1755852654566,-33234.98814845,0.00026,14]
[380733062,1755852654576,-164.51,0.00026,14]
[380733064,1755852654585,-480.0,0.00026027,10]
[380733066,1755852654594,-480.0,0.00026027,10]
[380733068,1755852654603,-480.0,0.00026027,10]
[380733070,1755852654613,-480.0,0.00026027,10]
[380733072,1755852654623,-480.0,0.00026027,10]
[380733074,1755852654632,-482.42,0.00026027,10]
[380733076,1755852654642,-480.0,0.00026027,10]
[380733078,1755852654653,-480.0,0.00026027,10]
[380733080,1755852654662,-694.9,0.00026027,10]
[380733082,1755852654672,-480.0,0.00026027,10]
[380733084,1755852654682,-480.0,0.00026027,10]
[380733086,1755852654693,-480.0,0.00026027,10]
[380733088,1755852654707,-480.0,0.00026027,10]
[380733090,1755852654720,-480.0,0.00026027,10]
[380733092,1755852654730,-480.0,0.00026027,10]
[380733094,1755852654740,-1037.19,0.00026027,10]
[380733097,1755852654752,-480.0,0.00026027,10]
[380733098,1755852654763,-480.0,0.00026027,10]
[380733109,1755852654850,-480.0,0.00026027,10]
[380733111,1755852654860,-480.0,0.00026027,10]
[380733113,1755852654870,-480.0,0.00026027,10]
[380733115,1755852654880,-480.0,0.00026027,10]
[380733117,1755852654890,-480.0,0.00026027,10]
[380733119,1755852654900,-480.0,0.00026027,10]
[380733121,1755852654910,-480.0,0.00026027,10]
[380733123,1755852654920,-480.0,0.00026027,10]
[380733125,1755852654929,-480.0,0.00026027,10]
[380733127,1755852654939,-480.0,0.00026027,10]
[380733129,1755852654948,-552.29,0.00026027,10]
[380733131,1755852654957,-480.0,0.00026027,10]
[380733132,1755852654966,-605.38206465,0.00026027,10]
[380733135,1755852654979,-394.17291234,0.00026027,10]
[380733137,1755852654988,-480.0,0.00026027,10]
[380733138,1755852654998,-480.0,0.00026027,10]
[380733140,1755852655008,-480.0,0.00026027,10]
[380733141,1755852655018,-492.96498502,0.00026027,10]
[380733142,1755852655028,-1184.9,0.00026027,10]
[380733143,1755852655037,-470.16439943,0.00026027,10]